[Event "3rd Sunway Formentera-A 2024"]
[Site "Formentera"]
[Date "2024.04.13"]
[Round "5.11"]
[White "Lesniewski, Lucas"]
[Black "Botez, Andrea"]
[Result "1-0"]
[ECO "D03"]
[WhiteElo "1975"]
[BlackElo "1879"]
[Annotator "TA"]
[PlyCount "157"]
[EventDate "2024.04.03"]
[EventType "swiss"]
[EventCountry "ESP"]
[SourceTitle "playchess.com"]
[Source "ChessBase"]
[SourceQuality "1"]
[TimeControl "40/5400+30:1800+30"]

{[%evp 20,157,4,10,21,22,36,13,41,36,39,0,11,-12,-13,-31,-29,-48,0,-3,-8,-9,8,0,27,24,33,24,32,0,307,9,53,25,32,25,29,25,34,0,6,0,0,-5,30,34,36,37,79,68,77,54,57,49,71,37,37,43,80,80,81,85,85,85,95,95,95,95,95,95,95,95,95,95,95,95,95,95,95,95,95,95,95,95,95,95,95,95,95,95,95,95,95,95,95,95,95,95,95,95,95,95,95,95,95,95,130,95,95,95,95,95,95,74,261,95,390,379,372,372,381,377,12850,12851,12837,12843,12837,12843,12832,12832,5365,2723,29957,12044,29968,29970,29954,29953,5073,4940]} 1. d4 {[%emt 0:00:02]} Nf6 {[%emt 0:01:19]} 2. Nf3 {[%emt 0:00:02]} g6 {[%emt 0:00:04]} 3. Bg5 {[%emt 0:00:09]} Bg7 {[%emt 0:00:22]} 4. Nbd2 {[%emt 0:00:14]} d5 {[%emt 0:06:55]} 5. e3 {[%emt 0:00:20]} O-O {[%emt 0:00:56]} 6. Be2 {[%emt 0:00:25]} h6 {[%emt 0:06:06] D03: 1 d4 d5 2 Nf3 Nf6 3 Bg5, including Torre Attack with early ...d5.} 7. Bh4 {[%emt 0:00:20]} Bf5 {[%emt 0:04:26]} 8. h3 {[%emt 0:01:54]} g5 $146 {[%emt 0:00:47]} ({Predecessor:} 8... Nc6 9. c3 a6 10. Bg3 Nh5 11. Bh2 Nf6 12. Ne5 Nxe5 13. dxe5 Nd7 14. f4 f6 {1-0 Steen,H (1731)-Asbury,V (1506) Lansing op 2004 (6)}) 9. Bg3 {[%emt 0:00:21]} Nbd7 {[%emt 0:02:10]} 10. c3 {[%emt 0:05:11]} c5 {[%emt 0:05:06]} 11. O-O {[%emt 0:00:10]} cxd4 {[%emt 0:08:51]} 12. cxd4 {[%emt 0:07:35]} Rc8 {[%emt 0:01:32]} 13. Rc1 {[%emt 0:04:04]} Re8 {[%emt 0:00:49]} 14. Qb3 {[%emt 0:04:39]} Qb6 {[%emt 0:01:14]} 15. Qxb6 {[%emt 0:00:10]} Nxb6 {[%emt 0:00:17]} 16. Bc7 {[%emt 0:00:11]} Nc4 {[%emt 0:02:02]} 17. b3 {[%emt 0:12:03]} Rxc7 {[%emt 0:02:01]} 18. bxc4 {[%emt 0:00:30]} Rec8 {[%emt 0:00:25]} 19. c5 {[%emt 0:01:11]} Nd7 {[%emt 0:01:56]} 20. Nb3 {[%emt 0:07:05]} e5 {[%emt 0:01:46]} 21. Bb5 {[%emt 0:02:26]} exd4 {[%emt 0:06:49]} 22. Nfxd4 {[%emt 0:03:45]} Bg6 {[%emt 0:00:43]} 23. c6 {[%emt 0:10:14]} bxc6 {[%emt 0:04:14]} 24. Ba6 {[%emt 0:03:24]} Re8 $2 {[%emt 0:02:54][%mdl 8192] [#]} (24... c5 $1 $11 25. Bxc8 Rxc8) 25. Nxc6 $2 {[%emt 0:00:16]} (25. Rxc6 Rxc6 26. Nxc6 Bf6 $14) ({Only move:} 25. Nb5 $1 $18 {[%cal Rb5c7]} Rec8 26. Bxc8 (26. Nxc7 Rxc7 $16) 26... Rxc8 27. Nxa7) 25... Ne5 {[%emt 0:06:49]} (25... Bb2 $2 26. Ne7+ Rxe7 27. Rxc7 $18) 26. Nxe5 {[%emt 0:02:37]} Bxe5 {[%emt 0:01:25]} 27. Rxc7 {[%emt 0:01:45]} Bxc7 {[%emt 0:00:04]} 28. Rc1 {[%emt 0:05:07]} Bb6 {[%emt 0:00:35]} 29. Rd1 {[%emt 0:00:11]} Be4 {[%emt 0:03:12]} 30. Rd2 {[%emt 0:05:31]} Re7 {[%emt 0:01:15]} 31. Bd3 {[%emt 0:08:56]} Kg7 {[%emt 0:03:14]} 32. Bxe4 {[%emt 0:00:30]} dxe4 {[%emt 0:00:08]} 33. g4 {[%emt 0:00:07]} h5 {[%emt 0:06:07]} 34. Rd5 {[%emt 0:01:36]} f6 {[%emt 0:01:57]} 35. a4 {[%emt 0:00:28]} hxg4 {[%emt 0:00:38]} 36. hxg4 {[%emt 0:00:57]} Kg6 {[%emt 0:01:29]} 37. a5 {[%emt 0:01:03]} Bc7 {[%emt 0:00:04]} 38. Nd4 {[%emt 0:00:25]} Be5 {[%emt 0:04:47]} 39. Nc6 {[%emt 0:09:21]} Re6 {[%emt 0:04:00]} 40. Nxa7 {[%emt 0:00:00]} Ra6 {[%emt 0:00:00]} 41. Nc8 {[%emt 0:01:50]} Bc7 {[%emt 0:23:10]} 42. Rd7 {[%emt 0:05:47]} Bxa5 {[%emt 0:00:29]} 43. Nd6 {[%emt 0:00:18]} Bb4 {[%emt 0:05:41]} 44. Nxe4 {[%emt 0:03:06]} f5 {[%emt 0:01:14]} 45. gxf5+ {[%emt 0:00:25]} Kxf5 {[%emt 0:00:03]} 46. Ng3+ {[%emt 0:03:02]} Kg6 {[%emt 0:02:17]} 47. Kg2 {[%emt 0:00:31]} Rf6 {[%emt 0:04:42]} 48. Rd5 {[%emt 0:00:58]} Be7 {[%emt 0:02:37]} 49. Rb5 {[%emt 0:01:19]} Bd8 {[%emt 0:00:38]} 50. Ne4 {[%emt 0:01:24]} Rf5 {[%emt 0:00:44]} 51. Rb8 {[%emt 0:01:32]} Rd5 {[%emt 0:00:46]} 52. Rc8 {[%emt 0:00:44]} Be7 {[%emt 0:02:40]} 53. Rc6+ {[%emt 0:00:19]} Kf5 {[%emt 0:00:50]} 54. Ng3+ {[%emt 0:04:17]} Ke5 {[%emt 0:00:08]} 55. Rg6 {[%emt 0:00:12]} Rd6 {[%emt 0:01:11]} 56. Rg7 {[%emt 0:02:39]} Bf6 {[%emt 0:00:44]} 57. Rb7 {[%emt 0:00:16]} Bd8 {[%emt 0:00:43]} 58. Kf3 {[%emt 0:01:22]} Rd2 {[%emt 0:00:31]} 59. Rb5+ {[%emt 0:01:08]} Ke6 {[%emt 0:00:11]} 60. Ne4 {[%emt 0:01:10]} Rd5 {[%emt 0:00:07]} 61. Rb8 {[%emt 0:01:57]} Kf5 {[%emt 0:01:00]} 62. Ng3+ {[%emt 0:01:40]} Kg6 {[%emt 0:00:21]} 63. Rc8 {[%emt 0:00:24]} Be7 {[%emt 0:00:54]} 64. Kg4 {[%emt 0:00:57]} Rc5 {[%emt 0:00:35]} 65. Ra8 {[%emt 0:02:33]} Rc4+ {[%emt 0:00:13]} 66. e4 {[%emt 0:00:19]} Rc6 $2 {[#]} (66... Rc2 $16 {was called for.}) 67. Nf5 $2 {[%emt 0:00:41]} (67. Rg8+ $1 $18 {is the precise move to win.} Kh7 68. Re8) 67... Bc5 $2 {[%emt 0:00:58][%mdl 8192]} (67... Bf6 $16) 68. Rg8+ $18 {[%emt 0:03:18]} Kf7 {[%emt 0:00:08]} 69. Rg7+ {[%emt 0:00:30]} (69. Rxg5 Bxf2 70. Rg7+ Kf8 $11) 69... Kf6 {[%emt 0:00:30]} 70. f3 {[%emt 0:00:30]} (70. Rxg5 Bxf2 71. Rh5 Rc4 $11) 70... Be3 $2 {[%emt 0:00:30]} (70... Bb4 71. Rxg5 Rc8) 71. e5+ $18 {[%emt 0:01:58]} Kxe5 {[%emt 0:01:15]} 72. Re7+ {[%emt 0:00:47]} Kf6 {[%emt 0:00:19]} 73. Rxe3 {[%emt 0:00:30]} Rc4+ {[%emt 0:00:37]} 74. Re4 {[%emt 0:00:05]} Rc1 {[%emt 0:00:12]} 75. Ng3 {[%emt 0:00:20]} Rc3 {[%emt 0:00:36]} 76. Ra4 {[%emt 0:00:13]} (76. Re8 $142 Kf7 77. Ne4 (77. Re5 Kg6 $18) 77... Rc1 78. Re5 (78. Nxg5+ Kxe8 79. Kg3 Rg1+ 80. Kf4 Ke7 $11) 78... Kg7 79. Nxg5 (79. Kxg5 Rh1 $18) (79. Rxg5+ Kh6 $18) 79... Rb1 80. f4 Kh6 81. Re6+ Kg7 82. Re7+ Kh6 83. Rh7+ Kg6 84. f5+ Kf6 85. Rf7+ (85. Ne4+ Ke5 $18) 85... Ke5 86. Re7+ (86. Nf3+ Kd6 $18) 86... Kd6 87. f6) 76... Ke5 {[%emt 0:00:53]} 77. Ra5+ {[%emt 0:00:15]} Ke6 {[%emt 0:00:19]} 78. Rxg5 {[%emt 0:00:09]} ({Not} 78. Kxg5 Rxf3 79. Nf5 Rf1 $14) 78... Rc1 {[%emt 0:00:22]} 79. Ra5 {[%emt 0:00:25]} 1-0

[Event "3rd Sunway Formentera-A 2024"]
[Site "Formentera"]
[Date "2024.04.13"]
[Round "5.12"]
[White "Tsatsalashvili, Keti"]
[Black "Zubizarreta Landera, Amets"]
[Result "1-0"]
[ECO "E04"]
[WhiteElo "2315"]
[BlackElo "2110"]
[Annotator "RC"]
[PlyCount "103"]
[EventDate "2024.04.03"]
[EventType "swiss"]
[EventCountry "ESP"]
[SourceTitle "playchess.com"]
[Source "ChessBase"]
[SourceQuality "1"]
[TimeControl "40/5400+30:1800+30"]

1. d4 {[%emt 0:00:05]} Nf6 {[%emt 0:03:18]} 2. c4 {[%emt 0:00:11]} e6 {[%emt 0:00:28]} 3. g3 {[%emt 0:00:15]} Bb4+ {[%emt 0:00:15]} 4. Nd2 {[%emt 0:00:13]} d5 {[%emt 0:00:55]} 5. Bg2 {[%emt 0:02:06]} O-O {[%emt 0:00:27]} 6. Ngf3 {[%emt 0:00:23]} dxc4 {[%emt 0:05:34]} 7. O-O {[%emt 0:01:35]} b5 {[%emt 0:00:28]} 8. a4 {[%emt 0:01:36]} c6 {[%emt 0:01:48]} 9. Ne1 {[%emt 0:04:29]} Nd5 {[%emt 0:01:05]} 10. Nc2 {[%emt 0:01:03]} Be7 {[%emt 0:06:26]} 11. e4 {[%emt 0:03:25]} Nc7 {[%emt 0:01:19]} 12. Qf3 {[%emt 0:03:05]} a5 {[%emt 0:16:12]} 13. b3 {[%emt 0:01:29]} cxb3 {[%emt 0:00:49]} 14. Nxb3 {[%emt 0:00:29]} b4 {[%emt 0:08:41]} 15. Rd1 {[%emt 0:01:29]} Nd7 {[%emt 0:00:31]} 16. Be3 {[%emt 0:01:54]} Qe8 {[%emt 0:07:31]} 17. Bf4 {[%emt 0:02:40]} e5 {[%emt 0:03:44]} 18. Bxe5 {[%emt 0:03:08]} Nxe5 {[%emt 0:01:07]} 19. dxe5 {[%emt 0:00:05]} Ne6 {[%emt 0:12:27]} 20. Ne3 {[%emt 0:04:05]} Nc5 {[%emt 0:02:12]} 21. Nf5 {[%emt 0:07:44]} Nxb3 {[%emt 0:03:03]} 22. Qxb3 {[%emt 0:00:12]} Be6 {[%emt 0:00:02]} 23. Qe3 {[%emt 0:01:11]} c5 {[%emt 0:01:22]} 24. Bf1 {[%emt 0:06:16]} c4 {[%emt 0:03:35]} 25. Qd4 {[%emt 0:10:11]} Rc8 {[%emt 0:02:13]} 26. Nd6 {[%emt 0:01:24]} Qc6 {[%emt 0:04:17]} 27. Rac1 {[%emt 0:18:52]} c3 {[%emt 0:00:55]} 28. Bb5 {[%emt 0:00:36]} Qc5 {[%emt 0:00:39]} 29. Qxc5 {[%emt 0:06:35]} Rxc5 {[%emt 0:00:03]} 30. Nb7 {[%emt 0:00:20]} Rc7 {[%emt 0:03:45]} 31. Nxa5 {[%emt 0:00:21]} c2 {[%emt 0:00:06]} 32. Rd5 {[%emt 0:02:10]} Bxd5 {[%emt 0:05:38]} 33. exd5 {[%emt 0:00:05]} b3 {[%emt 0:00:02]} 34. Nxb3 {[%emt 0:04:41]} Ba3 {[%emt 0:00:01]} 35. d6 {[%emt 0:00:06]} Bxc1 {[%emt 0:00:04]} 36. dxc7 {[%emt 0:00:04]} Bb2 {[%emt 0:02:55]} 37. Bd7 {[%emt 0:01:02]} c1=Q+ {[%emt 0:00:47]} 38. Nxc1 {[%emt 0:00:02]} Bxc1 {[%emt 0:00:08]} 39. c8=Q {[%emt 0:02:51]} Rxc8 {[%emt 0:00:12]} 40. Bxc8 {[%emt 0:00:00]} Kf8 {[%emt 0:00:00]} 41. a5 {[%emt 0:01:35]} Bb2 {[%emt 0:01:49]} 42. a6 {[%emt 0:00:34]} Bd4 {[%emt 0:00:01]} 43. Kg2 {[%emt 0:00:11]} Ke7 {[%emt 0:01:00]} 44. f4 {[%emt 0:00:20]} Kd8 {[%emt 0:01:02]} 45. Bb7 {[%emt 0:00:29]} Kd7 {[%emt 0:01:14]} 46. Kf3 {[%emt 0:00:49]} f6 {[%emt 0:00:31]} 47. Ke4 {[%emt 0:00:31]} Bg1 {[%emt 0:00:06]} 48. Kd5 {[%emt 0:03:57]} fxe5 {[%emt 0:00:35]} 49. fxe5 {[%emt 0:00:16]} h5 {[%emt 0:01:18]} 50. e6+ {[%emt 0:02:44]} Ke7 {[%emt 0:00:11]} 51. Bc8 {[%emt 0:02:04]} Kd8 {[%emt 0:00:01]} 52. Kd6 {[%emt 0:01:18]} 1-0

[Event "3rd Sunway Formentera-A 2024"]
[Site "Formentera"]
[Date "2024.04.15"]
[Round "6.1"]
[White "Pranav, V."]
[Black "Ivanchuk, Vasyl"]
[Result "0-1"]
[ECO "C65"]
[WhiteElo "2604"]
[BlackElo "2611"]
[Annotator "TA"]
[PlyCount "114"]
[EventDate "2024.04.03"]
[EventType "swiss"]
[EventCountry "ESP"]
[SourceTitle "playchess.com"]
[Source "ChessBase"]
[SourceQuality "1"]
[TimeControl "40/5400+30:1800+30"]

{[%evp 50,114,-41,-65,-68,-59,-56,-43,-63,-247,-239,-245,-250,-238,-241,-248,-245,-247,-241,-238,-230,-349,-320,-326,-307,-306,-215,-281,-302,-416,-416,-433,-71,-71,-72,-71,-71,-70,-69,-68,-37,-36,-37,-70,-71,-70,-71,-167,-58,-153,-151,-162,-117,-261,-266,-270,-261,-613,-594,-858,-858,-5422,-5410,-29982,-29985,-29987,-29988]} 1. e4 {[%emt 0:00:03]} e5 {[%emt 0:00:07]} 2. Nf3 {[%emt 0:00:07]} Nc6 {[%emt 0:00:05]} 3. Bb5 {[%emt 0:00:07]} Nf6 {[%emt 0:00:05]} 4. d3 {[%emt 0:00:07]} Bc5 {[%emt 0:00:06]} 5. c3 {[%emt 0:00:09]} O-O {[%emt 0:00:07]} 6. O-O {[%emt 0:00:11] C65: Ruy Lopez: Berlin Defence (3...Nf6), unusual lines and 4 0-0 Bc5.} Re8 {[%emt 0:00:05]} 7. d4 {[%emt 0:10:20]} Bb6 {[%emt 0:04:37]} 8. Re1 {[%emt 0:21:33]} exd4 {[%emt 0:06:02]} 9. Bxc6 $146 {[%emt 0:09:51]} ({Predecessor:} 9. e5 Ng4 10. Bxc6 dxc3 11. Bd5 Bxf2+ 12. Kf1 cxb2 13. Bxb2 Bxe1 14. Qd4 Nxe5 15. Nxe5 {0-1 Harikrishna,P (2705)-Almasi,Z (2689) Capablanca Memorial Elite 48th 2013 (8)}) 9... dxc6 {[%emt 0:04:52]} 10. e5 {[%emt 0:00:08]} Nd5 {[%emt 0:01:11]} 11. Nxd4 {[%emt 0:00:38]} Qh4 {[%emt 0:01:24]} 12. h3 {[%emt 0:05:15]} Bf5 {[%emt 0:14:39]} 13. Na3 {[%emt 0:11:27]} Rad8 {[%emt 0:18:10]} 14. Qf3 {[%emt 0:07:57]} Bg6 {[%emt 0:08:43]} 15. Nac2 {[%emt 0:05:49]} f6 {[%emt 0:08:27]} 16. e6 {[%emt 0:04:01]} Ne7 {[%emt 0:04:13]} 17. Bf4 {[%emt 0:04:14]} c5 {[%emt 0:11:44]} 18. Bg3 {[%emt 0:00:21]} Qh6 {[%emt 0:00:35]} 19. Bf4 {[%emt 0:00:14]} Qh4 {[%emt 0:00:05]} 20. Bg3 {[%emt 0:00:07]} Qg5 {[%emt 0:00:03]} 21. Bf4 {[%emt 0:01:04]} Qd5 {[%emt 0:00:07]} 22. Ne3 {[%emt 0:00:16]} Qxf3 {[%emt 0:00:21]} 23. Nxf3 {[%emt 0:00:05]} Bd3 {[%emt 0:00:50]} 24. Rad1 {[%emt 0:02:04]} c4 {[%emt 0:07:20]} 25. b3 {[%emt 0:03:10]} g5 {[%emt 0:04:22]} (25... cxb3 $17 26. axb3 Ng6) 26. Ng4 {[%emt 0:03:55]} gxf4 {[%emt 0:02:29]} 27. Nxf6+ {[%emt 0:00:06]} Kg7 {[%emt 0:00:38]} 28. Nxe8+ {[%emt 0:03:40]} Rxe8 {[%emt 0:00:01]} 29. Ne5 $2 {[%emt 0:00:15]} ({Better is} 29. bxc4 $15 Bxc4 30. Re4) 29... Bc2 $1 $19 {[%emt 0:00:21]} 30. Rd7 {[%emt 0:03:21]} cxb3 {[%emt 0:00:01]} 31. axb3 {[%emt 0:00:05]} Bxb3 {[%emt 0:00:09]} 32. c4 {[%emt 0:00:07] [#]} a5 $1 {[%emt 0:02:34]} (32... Ba4 33. c5 Bxc5 (33... Ba5 $2 34. Ra1 $19) 34. Rxc7) 33. c5 {[%emt 0:01:31]} Bxc5 {[%emt 0:00:31]} 34. Rxc7 {[%emt 0:00:01]} Bb4 {[%emt 0:01:15]} 35. Re2 {[%emt 0:01:10]} (35. Rb1 {keeps fighting.} Ba2 (35... Bxe6 $2 36. Rxb7 Bc8 37. Ra7 $19) 36. Rb2) 35... Bd5 {[%emt 0:00:52]} (35... Bxe6 36. Rxb7 Kg8 37. Ng4 $17) 36. Rd7 {[%emt 0:01:29]} a4 {[%emt 0:00:33]} (36... Bxe6 37. Rxb7 Bd5 38. Rd7 $17) 37. Nd3 {[%emt 0:00:02]} Bc3 {[%emt 0:00:21]} 38. Nxf4 {[%emt 0:01:53]} Bc6 {[%emt 0:00:01]} 39. Re3 {[%emt 0:01:24]} Bb2 {[%emt 0:00:20]} ({But not} 39... Bxd7 $2 40. exd7 Rb8 41. Ne6+ (41. Rxc3 Kf7 $18) (41. Rxe7+ Kf8 $16) 41... Kf6 42. d8=Q (42. d8=B Bb4 $17) (42. d8=R Rxd8 43. Nxd8 Nd5 $18) 42... Rxd8 43. Nxd8 $18) 40. Nd3 {[%emt 0:00:00] [#]} a3 $2 {[%emt 0:00:00]} (40... Bf6 $1 $19 41. Rc7 Bd4 42. Rg3+ Kh8 (42... Kf6 $2 43. Rg4 $19)) 41. Nxb2 $17 {[%emt 0:04:56]} axb2 {[%emt 0:01:43]} 42. Rd1 {[%emt 0:00:12]} Kf6 {[%emt 0:17:37]} 43. Rb1 {[%emt 0:09:08]} Rg8 {[%emt 0:00:02]} 44. g4 {[%emt 0:01:26]} h5 {[%emt 0:00:16]} 45. f3 {[%emt 0:01:57]} Nd5 {[%emt 0:01:06]} 46. Rb3 {[%emt 0:01:12]} Nf4 {[%emt 0:02:24]} 47. R1xb2 {[%emt 0:06:33]} h4 {[%emt 0:00:42]} 48. Kh2 {[%emt 0:05:03]} (48. e7 $17 {was worth a try.}) 48... Ke7 (48... Nxe6 $19 {And now ...Rd8 would win.} 49. Rd2 Ng5) 49. Re3 {[%emt 0:00:30]} (49. Rxb7+ $1 $15 Bxb7 50. Rxb7+ Kxe6 51. Rh7) 49... Ra8 ({Don't play} 49... Nxe6 50. Re5 $17) 50. Reb3 {[%emt 0:00:30]} Kxe6 {[%emt 0:12:12]} 51. Rb4 {[%emt 0:05:00]} (51. Re3+ $17 Kf6 52. Reb3) 51... Ke5 {[%emt 0:00:13]} 52. R4b3 {[%emt 0:00:51]} Ra1 {[%emt 0:00:46]} 53. Rf2 $2 {[%emt 0:00:30]} (53. Rb1 Rxb1 54. Rxb1) 53... Rd1 $19 {[%emt 0:00:30]} 54. Re3+ {[%emt 0:00:30]} Kd4 {[%emt 0:00:30]} 55. Re7 {[%emt 0:00:30]} Nd3 {[%emt 0:00:30]} 56. Rg2 {[%emt 0:00:30]} Ne5 {[%emt 0:00:30]} 57. Rf2 {[%emt 0:00:46]} Nxf3+ {[%emt 0:00:33]} 0-1

[Event "3rd Sunway Formentera-A 2024"]
[Site "Formentera"]
[Date "2024.04.15"]
[Round "6.2"]
[White "Manish Anto Cristiano F"]
[Black "Moussard, Jules"]
[Result "1/2-1/2"]
[ECO "B00"]
[WhiteElo "2293"]
[BlackElo "2610"]
[Annotator "TA"]
[PlyCount "55"]
[EventDate "2024.04.03"]
[EventType "swiss"]
[EventCountry "ESP"]
[SourceTitle "playchess.com"]
[Source "ChessBase"]
[SourceQuality "1"]
[TimeControl "40/5400+30:1800+30"]

{[%evp 9,55,10,14,12,26,0,0,0,-7,0,0,-51,-40,-48,0,0,31,21,14,18,16,0,44,50,57,56,44,32,125,123,126,121,177,84,108,100,94,22,29,21,17,5,6,6,5,0,8,0]} 1. e4 {[%emt 0:00:24]} Nc6 {[%emt 0:02:13]} 2. d4 {[%emt 0:00:53]} d5 {[%emt 0:00:30]} 3. e5 {[%emt 0:02:32]} Bf5 {[%emt 0:00:13]} 4. Nf3 {[%emt 0:01:02]} e6 {[%emt 0:00:07]} 5. Be2 {[%emt 0:03:00]} f6 {[%emt 0:10:06]} 6. O-O {[%emt 0:12:13]} fxe5 {[%emt 0:02:31]} 7. dxe5 {[%emt 0:09:00]} Bc5 {[%emt 0:01:22]} 8. Nbd2 {[%emt 0:01:20]} Nge7 {[%emt 0:03:25]} 9. Nb3 {[%emt 0:01:18]} Bb6 {[%emt 0:00:14]} 10. c4 {[%emt 0:06:12]} (10. c3 $11) 10... dxc4 $15 {[%emt 0:01:38]} 11. Bxc4 {[%emt 0:00:10]} Nd5 {[%emt 0:05:26]} (11... Qxd1 $15 12. Rxd1 Bg4) 12. a4 $11 {[%emt 0:12:52] a5 is the strong threat.} a6 {[%emt 0:06:23]} 13. Nbd4 $36 {[%emt 0:01:44][%mdl 2048] White is pushing.} Nxd4 {[%emt 0:02:14]} 14. Nxd4 {[%emt 0:00:07]} O-O {[%emt 0:10:20]} 15. Be3 {[%emt 0:02:43]} c5 {[%emt 0:13:49]} 16. Nxf5 {[%emt 0:07:46]} Rxf5 {[%emt 0:00:05]} 17. Qb3 {[%emt 0:01:45] Hoping for f4.} Rxe5 {[%emt 0:01:54]} 18. Rfd1 {[%emt 0:00:13][%cal Oa4a5]} h6 {[%emt 0:05:35] [#]} (18... a5 $14) 19. a5 $1 $16 {[%emt 0:08:05][%mdl 512]} Bxa5 {[%emt 0:00:25]} 20. Qxb7 {[%emt 0:00:07][%cal Oa1a5] aiming for Rxa5!} (20. Bxc5 b5 21. Bxd5 exd5) 20... Bb4 {[%emt 0:05:48] [#]} (20... Rb8 $16 {is a better defense.} 21. Qxa6 Ra8) 21. Rxa6 {[%emt 0:06:37]} ({Stronger than} 21. Bxa6 Rb8 22. Qa7 Qf8 $15) (21. Bf4 $1 $18 {[%cal Rf4e5] is more deadly.} Rf5 22. Rxa6 Rxa6 23. Qxa6 Rxf4 24. Qxe6+ Kh8 25. Rxd5 (25. Bxd5 Rf8 $16)) 21... Rxa6 {[%emt 0:00:30]} 22. Qxa6 {[%emt 0:00:08]} ({Resist} 22. Bxa6 Qf8 $14) 22... Qe8 {[%emt 0:03:31]} 23. Qd6 {[%emt 0:05:45] White is more active.} (23. Bc1 $16) 23... Nxe3 $11 {[%emt 0:06:57]} 24. fxe3 {[%emt 0:00:18]} Rxe3 {[%emt 0:00:24] Black is weak on the light squares. The position is equal.} 25. Qf4 {[%emt 0:02:35]} Re1+ {[%emt 0:00:36]} 26. Rxe1 {[%emt 0:00:06]} Bxe1 {[%emt 0:00:02]} 27. Qe5 {[%emt 0:00:21]} Bb4 {[%emt 0:00:13]} 28. Qxe6+ {[%emt 0:03:09] Weighted Error Value: White=0.22 (precise) /Black=0.21 (precise) .  Mistake:       	White=3     	Black=3      Inaccurate:     	White=1     	Black=2      OK:         	White=7     	Black=7      Best:        	White=1     	Black=3} 1/2-1/2

[Event "3rd Sunway Formentera-A 2024"]
[Site "Formentera"]
[Date "2024.04.15"]
[Round "6.3"]
[White "Song, Yuxin"]
[Black "Donchenko, Alexander"]
[Result "0-1"]
[ECO "B52"]
[WhiteElo "2379"]
[BlackElo "2633"]
[Annotator "TA"]
[PlyCount "130"]
[EventDate "2024.04.03"]
[EventType "swiss"]
[EventCountry "ESP"]
[SourceTitle "playchess.com"]
[Source "ChessBase"]
[SourceQuality "1"]
[TimeControl "40/5400+30:1800+30"]

{[%evp 43,130,-64,-62,-55,-58,-73,-66,-82,-40,-70,-69,-61,-24,-70,-65,-60,-60,-70,-14,-66,0,-53,0,-62,-68,-64,-66,-64,-60,-104,-61,-62,-81,-86,-56,-50,-56,-52,-15,-58,-56,-48,-12,-52,-43,-37,-43,-25,-18,-37,-32,-33,-38,-36,-8,-8,-12,-14,-15,-27,-8,-8,-8,-8,-8,-8,-8,-8,-8,-246,0,0,0,-534,-858,-1027,-1051,-885,-830,-29955,-29950,-8727,-5081,-29974,-29975,-29975,-29976,-29975,-29969]} 1. e4 {[%emt 0:00:03]} c5 {[%emt 0:00:18]} 2. Nf3 {[%emt 0:00:06]} d6 {[%emt 0:00:13]} 3. Bb5+ {[%emt 0:00:05]} Bd7 {[%emt 0:02:24]} 4. Bxd7+ {[%emt 0:00:06]} Nxd7 {[%emt 0:00:15]} 5. O-O {[%emt 0:00:07]} e6 {[%emt 0:01:25]} 6. Qe2 {[%emt 0:00:06] B52: Sicilian: Moscow Variation with 3...Bd7.} Be7 {[%emt 0:02:55]} 7. d4 {[%emt 0:00:06]} cxd4 {[%emt 0:02:22]} 8. Nxd4 {[%emt 0:00:05]} a6 {[%emt 0:04:56]} 9. c4 {[%emt 0:00:08]} Bf6 {[%emt 0:02:44]} 10. Be3 {[%emt 0:10:51]} Ne7 {[%emt 0:01:07]} 11. Nc3 {[%emt 0:02:01]} O-O {[%emt 0:02:11]} 12. Rfd1 {[%emt 0:02:42]} Rc8 {[%emt 0:03:02]} 13. Rac1 {[%emt 0:00:26]} Qa5 {[%emt 0:05:22]} 14. a3 $146 {[%emt 0:13:19]} ({Predecessor:} 14. Nf3 Qc7 15. c5 dxc5 16. Rxd7 Qxd7 17. e5 Bxe5 18. Nxe5 Qd6 19. Nc4 Qc6 20. Ne5 {½-½ Bernal Varela,N (2388)-Oliveira,M (2442) WZ-ch fin01 email 2018}) 14... Rfd8 {[%emt 0:07:17]} 15. h3 {[%emt 0:08:42]} Ng6 {[%emt 0:04:33]} 16. Nb3 {[%emt 0:04:41]} Qc7 {[%emt 0:01:15]} 17. Nb1 {[%emt 0:06:07]} Nc5 {[%emt 0:05:41]} 18. Qc2 {[%emt 0:04:13]} Qc6 {[%emt 0:18:07]} 19. Na5 {[%emt 0:08:23]} Qxe4 {[%emt 0:02:40]} 20. b4 {[%emt 0:00:25]} Qxc2 {[%emt 0:01:24]} 21. Rxc2 {[%emt 0:00:02]} b6 {[%emt 0:00:10]} 22. bxc5 {[%emt 0:02:37]} dxc5 {[%emt 0:00:15]} 23. Rxd8+ {[%emt 0:06:45]} Rxd8 {[%emt 0:00:02]} 24. Nd2 {[%emt 0:00:34]} bxa5 {[%emt 0:00:07]} 25. Bxc5 {[%emt 0:00:53]} Nf4 {[%emt 0:05:02]} 26. Ne4 {[%emt 0:08:52]} Be5 {[%emt 0:02:39]} 27. g3 {[%emt 0:02:27]} Rd1+ {[%emt 0:00:20]} (27... Nxh3+ $2 28. Kg2 $18) 28. Kh2 {[%emt 0:00:08]} Nd3 {[%emt 0:00:07]} 29. Bb6 $1 {[%emt 0:00:36]} Ne1 {[%emt 0:10:05]} 30. Re2 {[%emt 0:00:01]} Nf3+ {[%emt 0:01:11]} 31. Kg2 {[%emt 0:00:01]} Ne1+ {[%emt 0:00:20]} 32. Kh2 {[%emt 0:00:01]} Nf3+ {[%emt 0:00:58]} 33. Kg2 {[%emt 0:00:00]} Nd4 {[%emt 0:00:07]} (33... Ne1+ 34. Kh2 $11) 34. Nc3 {[%emt 0:05:58]} Nxe2 {[%emt 0:00:49]} 35. Nxd1 {[%emt 0:00:01]} a4 {[%emt 0:00:15]} 36. Kf3 {[%emt 0:03:50]} Nd4+ {[%emt 0:05:09]} 37. Ke4 {[%emt 0:00:55]} Nc6 {[%emt 0:00:03]} 38. Be3 {[%emt 0:08:24]} Bd6 {[%emt 0:08:48]} 39. c5 {[%emt 0:01:10]} Be5 {[%emt 0:00:06]} 40. Kd3 {[%emt 0:00:00]} f5 {[%emt 0:00:00]} 41. Kc4 {[%emt 0:06:57]} Kf7 {[%emt 0:04:38]} 42. Bd2 {[%emt 0:06:21]} h5 {[%emt 0:09:41]} 43. Bc3 {[%emt 0:04:07]} g5 {[%emt 0:01:01]} 44. Nb2 {[%emt 0:01:15]} Bxc3 {[%emt 0:01:52]} 45. Kxc3 {[%emt 0:00:01]} e5 {[%emt 0:00:16]} 46. Nxa4 {[%emt 0:03:04]} Ke6 {[%emt 0:00:40]} 47. Nb6 {[%emt 0:01:28]} e4 {[%emt 0:01:26]} 48. Kc4 {[%emt 0:02:34]} f4 {[%emt 0:06:08]} 49. gxf4 {[%emt 0:00:00]} gxf4 {[%emt 0:00:45]} 50. Nd5 {[%emt 0:01:14]} Ke5 {[%emt 0:00:06]} 51. Nc3 $1 {[%emt 0:04:12]} h4 {[%emt 0:12:43]} 52. Nd1 Nd4 53. Nc3 Ne6 54. c6 f3 55. Nd1 Kd6 56. Nc3 $2 (56. Ne3 $1 $11 {and White is okay.}) 56... Ke5 $2 {[%emt 0:00:00]} (56... Kxc6 57. Nxe4 Kb6 58. Kd3 $11) (56... e3 $1 {[%cal Re3e2] And now ...e2 would win.} 57. fxe3 Ng5 (57... Kxc6 58. Ne4 $15)) 57. Nd1 $19 {[%emt 0:08:03]} Kd6 {[%emt 0:00:00]} 58. Nc3 {[%emt 0:01:55] [#]} e3 $1 {[%emt 0:02:41]} (58... Kxc6 59. Nxe4 Kb6 60. Kd3 $11) 59. fxe3 {[%emt 0:02:11]} Ng5 $1 {[%emt 0:00:02]} (59... Kxc6 60. Ne4 $15) 60. Kd3 {[%emt 0:00:35]} Nxh3 {[%emt 0:00:38]} (60... Kxc6 $2 61. Nb1 $19) 61. e4 {[%emt 0:00:28]} Nf2+ {[%emt 0:00:49]} (61... Kxc6 62. Nd1 $17) 62. Ke3 {[%emt 0:00:15] [#]} h3 $1 {[%emt 0:00:01]} 63. e5+ {[%emt 0:00:50]} Kxc6 {[%emt 0:00:17]} (63... Kxe5 64. c7 (64. Kxf2 Kd6 $11) 64... h2 65. c8=Q $18 (65. c8=B $2 h1=Q $19)) 64. e6 {[%emt 0:00:30]} h2 {[%emt 0:00:10]} 65. e7 {[%emt 0:00:03]} Kd7 {[%emt 0:00:21]} (65... h1=R $2 {is the wrong capture.} 66. e8=Q+ (66. e8=R $2 {perishes.} Re1+ 67. Kxf3 Rxe8 $19) 66... Kb7 67. Kxf2 $18) 0-1